Cogmind - Beta 14 @@@ ROGUE MODE // 2024.10.22 @ 02:48:16 Player: Pitt Result: Destroyed by G-47 Trooper with Particle Gun Performance ------------- Evolutions (3) 1500 Regions Visited (7) 1400 Robots Destroyed (68) 340 Value Destroyed (1377) 1377 Prototype IDs (4) 80 Alien Tech Used (0) 0 Bonus (0) 0 TOTAL SCORE: 4697 Bonus ------- None Cogmind --------- Core Integrity 0/700 Matter 274/300 Energy 244/265 System Corruption 17% Temperature Cool (9) Movement Flying (200) Ox2 Location -7/Lower Caves Parts ------- > --- POWER (1) -------- Improved Ion Engine (fused) > --- PROPULSION (4) --- Xenon Bombardment Thruster (fused) > --- UTILITY (6) ------ Hacking Suite > --- WEAPON (2) ------- Great Maul Great Maul > --- INVENTORY (5) ---- Light Ion Engine Shock Rifle Arc Projector Remote Datajack Dirty Bomb Trap Peak State ------------ > --- POWER ------------ (None) > --- PROPULSION ------- Aluminum Leg Aluminum Leg > --- UTILITY ---------- Small Storage Unit Machine Analyzer Terrain Scan Processor Targeting Computer Hacking Suite System Shield > --- WEAPON ----------- Particle Gun Gauss Rifle > --- INVENTORY -------- Improved Ion Engine Structural Scanner Seismic Detector Grenade Launcher Heavy Rocket Launcher Improved Datajack [Rating: 22] Favorites ----------- Power Light Ion Engine Engine Light Ion Engine Propulsion Wheel Leg Aluminum Leg Wheel Wheel Flight Unit Xenon Bombardment Thruster Utility Small Storage Unit Device Improved Terrain Scanner Storage Small Storage Unit Processor Terrain Scan Processor Hackware Hacking Suite Protection Light Armor Plating Weapon Medium Laser Energy Gun Medium Laser Energy Cannon Light EM Pulse Cannon Ballistic Gun Gauss Rifle Ballistic Cannon Light Cannon Launcher Grenade Launcher Special Weapon Mining Laser Impact Weapon Great Maul Special Melee Weapon Datajack Build | -11 -10 -9 -8 -7 -7 -7 -7 ------- Run | Yrd Mat Mat Mat Fac Was Fac Low Slots Evolved 6 | . . 2 2 2 . . . Power . | . . . . . . . . Propulsion 2 | . . . 1 1 . . . Utility 4 | . . 2 1 1 . . . Weapon . | . . . . . . . . Parts Attached 66 | 7 6 20 13 7 4 8 1 Power 3 | 1 . 1 . . 1 . . Engine 3 | 1 . 1 . . 1 . . Core . | . . . . . . . . Reactor . | . . . . . . . . Propulsion 9 | 2 . 1 3 . 1 1 1 Treads . | . . . . . . . . Leg 2 | . . . 2 . . . . Wheel 5 | 2 . 1 1 . . 1 . Hover . | . . . . . . . . Flight 2 | . . . . . 1 . 1 Utility 19 | 2 . 7 3 5 1 1 . Device 9 | 1 . 4 . 3 1 . . Storage 3 | 1 . . . 1 . 1 . Processor 4 | . . 2 2 . . . . Hackware 2 | . . . 1 1 . . . Protection 1 | . . 1 . . . . . Artifact . | . . . . . . . . Weapon 35 | 2 6 11 7 2 1 6 . Energy Gun 14 | 2 3 4 3 . . 2 . Energy Cannon 4 | . . 2 1 . 1 . . Ballistic Gun 3 | . . 1 2 . . . . Ballistic Cannon 1 | . . 1 . . . . . Launcher 4 | . . 1 1 2 . . . Special Weapon 4 | . 3 1 . . . . . Impact Weapon 4 | . . . . . . 4 . Slashing Weapon . | . . . . . . . . Piercing Weapon . | . . . . . . . . Special Melee Weapon 1 | . . 1 . . . . . Unidentified Prototypes 4 | . . 1 1 . 2 . . Corrupted Parts 5 | . . . 2 . 2 1 . System Corruption 17 | . . . 8 . 7 2 . Parts Lost 24 | . . 7 5 9 1 . 2 Power 2 | . . 2 . . . . . Propulsion 7 | . . 3 1 2 . . 1 Utility 7 | . . 1 1 3 1 . 1 Weapon 8 | . . 1 3 4 . . . Highest Loss Streak 6 | . . 5 3 6 1 . 2 To Critical Strikes 1 | . . . . 1 . . . Average Slot Usage (%) 70 | . 100 87 67 61 22 34 38 Engine 6 | . 14 9 . . . 7 7 Leg 1 | . . . 5 6 . . . Wheel 9 | . 28 13 1 . . 1 2 Device 5 | . 14 9 . 4 1 . . Storage 8 | . 14 11 9 5 . 1 2 Processor 12 | . . 22 24 18 13 . . Hackware 4 | . . . 8 13 7 7 7 Energy Gun 12 | . 27 15 10 4 . 3 . Energy Cannon 1 | . . 3 2 . . . . Ballistic Gun 1 | . . . 3 4 . . . Impact Weapon 3 | . . . . . . 6 15 Peak Build Rating 22 | 9 10 15 20 22 15 18 16 Average Rating 13 | 7 9 12 16 18 9 15 14 On Entrance 10 | . 9 10 13 19 8 11 15 Naked Turns . | . . . . . . . . Heaviest Build 20 | 13 13 16 14 13 7 20 20 Greatest Support 20 | 20 20 20 20 20 6 10 10 Greatest Overweight (x) 6 | . . 4 4 3 1 6 6 Average Overweight (x) . | . . . 1 . . 1 1 Largest Inventory Capacity 8 | 8 8 8 8 8 5 8 8 Average Capacity 7 | 7 8 8 8 7 5 5 6 Most Carried 8 | 6 8 8 8 7 5 6 8 Average Carried 6 | 3 7 7 7 6 4 4 5 Final Capacity 8 | 8 8 8 8 5 5 8 5 Final Carried 8 | 6 8 8 7 5 4 6 5 Class Distribution -------------------- 64% | Mutant 25% | Scavenger-Mutant 6% | Skirmisher Dominant Class ---------------- Mutant | -10/Materials Scavenger-Mutant | -9/Materials Mutant | -8/Materials Scavenger-Mutant | -7/Factory Mutant | -7/Waste Mutant | -7/Factory Mutant | -7/Lower Caves Resources | -11 -10 -9 -8 -7 -7 -7 -7 ----------- Run | Yrd Mat Mat Mat Fac Was Fac Low Matter Collected 1104 | 270 43 285 204 52 . 197 53 Remotely . | . . . . . . . . Salvage Created 2168 | 267 133 693 506 125 . 237 207 Parts 110 | 20 15 38 19 12 . 3 3 Haulers Intercepted . | . . . . . . . . Recyclers Shooed 3 | . . 1 . 1 . 1 . Parts Field Recycled . | . . . . . . . . Retrieved Matter . | . . . . . . . . Parts Self-Destructed 1 | . . . . . . . 1 Prevented 2 | . . . . . . . 2 Kills | -11 -10 -9 -8 -7 -7 -7 -7 ------- Run | Yrd Mat Mat Mat Fac Was Fac Low Combat Hostiles Destroyed 33 | . 1 15 11 5 . . 1 Melee 1 | . . . . . . . 1 Guns 11 | . 1 1 7 2 . . . Cannons 8 | . . 8 . . . . . AOE 12 | . . 5 4 3 . . . Classes Destroyed 13 | 3 4 3 1 . . . 2 Worker 5 | 1 . . 1 1 . 2 . Builder 5 | . 2 . . 1 . 2 . Tunneler 10 | 9 . 1 . . . . . Recycler 5 | 1 . 2 1 . . 1 . Minesweeper 1 | . . . . . . . 1 Mechanic 2 | . 1 . . . . 1 . Operator 2 | . . 2 . . . . . Watcher 5 | . 1 4 . . . . . Swarmer 14 | . . 7 4 3 . . . Grunt 12 | . 1 4 6 1 . . . Sentry 4 | . . 4 . . . . . Hunter 2 | . . . 1 1 . . . Programmer 1 | . . . . . . . 1 Packrat 2 | . . . . . . . 2 Best Kill Streak 12 | 6 2 12 4 6 . 4 1 Combat Bots Only 5 | . 1 5 4 4 . . 1 Max Kills in Single Turn 3 | 1 1 3 3 2 . 1 1 Gunslinging . | . . . . . . . . Exploded 3 | . . 3 3 1 . . . Melee 1 | . . . . . . . 1 Uniques/NPCs Destroyed . | . . . . . . . . Combat | -11 -10 -9 -8 -7 -7 -7 -7 -------- Run | Yrd Mat Mat Mat Fac Was Fac Low Hostile Shots Fired 275 | . 2 92 70 79 1 . 31 Missed 72 | . . 23 18 23 . . 8 Damage Taken 3090 | . 22 918 759 897 32 . 462 Core 1189 | . 9 200 271 477 32 . 200 Absorbed by Shields . | . . . . . . . . Core Remaining (%) 74 | 100 96 50 50 . . . . Volleys Fired 177 | 19 17 73 44 14 . 10 . Largest 2 | 2 2 2 2 2 . 1 . Hottest 112 | 100 100 112 112 93 . 55 . Shots Fired 261 | 38 28 110 56 19 . 10 . Gun 200 | 38 22 63 54 13 . 10 . Cannon 40 | . . 39 1 . . . . Launcher 12 | . . 5 1 6 . . . Special 9 | . 6 3 . . . . . Kinetic 41 | . . 14 20 7 . . . Thermal 162 | 38 28 66 24 6 . . . Explosive 12 | . . 5 1 6 . . . Electromagnetic 46 | . . 25 11 . . 10 . Robot Hit Streak 18 | 13 18 11 5 6 . 1 . Robot Miss Streak 4 | 3 1 2 4 4 . 4 . Penetration Max . | . . . . . . . . Secondary Targets 1 | . . 1 . . . . . Max Gunslinging Chain 1 | . . 1 . . . . . Shots Hit Robots 171 | 25 8 71 41 12 . 8 6 Core Hits 103 | 12 6 31 28 23 . 2 1 Critical Kills 1 | . . . . . . . 1 Critical Parts Destroyed 5 | . . . . . . 3 2 Critical Strikes 14 | 5 1 2 . . . 3 3 Burn 7 | 5 1 1 . . . . . Blast 1 | . . 1 . . . . . Smash 6 | . . . . . . 3 3 Melee Attacks 15 | . . 1 . . . 7 7 Impact 14 | . . . . . . 7 7 Slashing . | . . . . . . . . Piercing . | . . . . . . . . Sneak Attacks 9 | . . 1 . . . 5 3 Combat Hostiles . | . . . . . . . . Follow-up Attacks . | . . . . . . . . Damage Inflicted 4814 | 326 108 1596 879 942 . 552 411 Guns 1855 | 326 102 529 682 156 . 60 . Cannons 664 | . . 664 . . . . . Explosions 1386 | . . 403 197 786 . . . Melee 903 | . . . . . . 492 411 Ramming 6 | . 6 . . . . . . Kinetic 539 | . . 211 232 96 . . . Thermal 1430 | 326 102 566 376 60 . . . Explosive 1247 | . . 366 95 786 . . . Electromagnetic 689 | . . 453 176 . . 60 . Impact 903 | . . . . . . 492 411 Slashing . | . . . . . . . . Piercing . | . . . . . . . . Highest Corruption 17 | . . 2 8 . 13 15 17 Average Corruption 13 | . . 2 7 . 9 13 15 Corruption Purged . | . . . . . . . . Corruption Blocked . | . . . . . . . . Effects 55 | . . . 10 . 3 9 33 Message Errors 17 | . . . 1 . 1 5 10 Matter Fused 10 | . . . 2 . . 1 7 Heat Flow Errors 5 | . . . . . 1 1 3 Energy Discharges 10 | . . . 2 . . 1 7 Parts Fused 2 | . . . . . . . 2 Data Loss (minor) 4 | . . . 2 . 1 . 1 Data Loss (major) 1 | . . . . . . . 1 Misfires 1 | . . . 1 . . . . Alerts 3 | . . . . . . 1 2 Weapon Failures 2 | . . . 2 . . . . Overload Shots . | . . . . . . . . Overflow Damage 771 | . . . 8 37 . 427 299 Projectiles . | . . . . . . . . Explosions 45 | . . . 8 37 . . . Melee 726 | . . . . . . 427 299 Knockbacks 4 | . . . . . . 4 . Impact 3 | . . . . . . 3 . Kinetic . | . . . . . . . . Secondary 1 | . . . . . . 1 . Self-Inflicted Damage 245 | . 3 59 . 183 . . . Shots 8 | . . 3 . 5 . . . Rammed 1 | . 1 . . . . . . Targets Rammed 2 | . 1 . . 1 . . . Kicked 1 | . . . . 1 . . . Crushed . | . . . . . . . . Highest Temperature 355 | 234 117 355 66 . 254 262 235 Average Temperature 67 | 77 46 75 20 . 133 50 105 Received Heat Transfer 774 | . 18 285 360 72 . . 39 Siege Activations . | . . . . . . . . Robots Corrupted 3 | . . . . . . 2 1 Combat Hostiles . | . . . . . . . . Parts Fried 14 | . . 3 . . . 9 2 Impact Corruptions 21 | . . . . . . 12 9 Robots Melted 1 | . . 1 . . . . . Combat Hostiles 1 | . . 1 . . . . . Parts Melted 6 | 4 1 1 . . . . . Heat Transferred 4096 | 1332 370 1567 679 148 . . . Parts Sabotaged . | . . . . . . . . Parts Stolen . | . . . . . . . . Parts Stripped . | . . . . . . . . Power Chain Reactions 2 | . . 1 1 . . . . Alert | -11 -10 -9 -8 -7 -7 -7 -7 ------- Run | Yrd Mat Mat Mat Fac Was Fac Low Peak Influence 267 | 55 48 243 267 150 32 80 . Initial 83 | . 35 10 83 73 17 15 . Average 71 | 25 29 95 141 57 19 31 . Maximum Alert Level 1 | . . 1 1 . . . . Low Security (%) 97 | 100 100 95 95 100 100 100 . Level 1 2 | . . 4 4 . . . . Level 2 . | . . . . . . . . Level 3 . | . . . . . . . . Level 4 . | . . . . . . . . Level 5 . | . . . . . . . . High Security . | . . . . . . . . Max Security . | . . . . . . . . Squads Dispatched 17 | . 1 2 4 9 . 1 . Investigation 1 | . . . 1 . . . . Extermination 2 | . . . . 1 . 1 . Reinforcement 6 | . 1 2 1 2 . . . Assault 1 | . . . 1 . . . . Garrison 7 | . . . 1 6 . . . Intercept . | . . . . . . . . Searches Triggered . | . . . . . . . . Construction Impeded 1 | . . . . 1 . . . Haulers Reinforced . | . . . . . . . . Active Scanning Responses . | . . . . . . . . Cargo Convoy Interrupts . | . . . . . . . . Stealth | -11 -10 -9 -8 -7 -7 -7 -7 --------- Run | Yrd Mat Mat Mat Fac Was Fac Low Distress Signals 4 | . 1 1 1 1 . . . Communications Jammed . | . . . . . . . . Distress Signals . | . . . . . . . . Times Spotted 74 | . 3 24 17 16 4 4 6 Peak Tracking Total 6 | . 1 6 6 4 6 2 4 Tactical Retreats 5 | . . . 2 2 . . 1 Traps | -11 -10 -9 -8 -7 -7 -7 -7 ------- Run | Yrd Mat Mat Mat Fac Was Fac Low Traps Triggered 4 | . . 1 1 2 . . . Indirectly . | . . . . . . . . Trap Hack Attempts . | . . . . . . . . Triggered . | . . . . . . . . Disarmed . | . . . . . . . . Reprogrammed . | . . . . . . . . Reused . | . . . . . . . . Traps Extracted . | . . . . . . . . Installed . | . . . . . . . . Triggered . | . . . . . . . . Most Traps Carried 2 | . . . . . . . 2 Machines | -11 -10 -9 -8 -7 -7 -7 -7 ---------- Run | Yrd Mat Mat Mat Fac Was Fac Low Machines Disabled 4 | . . 2 2 . . . . Max in Single Turn 1 | . . 1 1 . . . . Garrison Access 1 | . . . 1 . . . . Machines Repaired . | . . . . . . . . Machines Dismantled . | . . . . . . . . Machines Sabotaged . | . . . . . . . . Overloaded Fab Kills . | . . . . . . . . Hacking | -11 -10 -9 -8 -7 -7 -7 -7 --------- Run | Yrd Mat Mat Mat Fac Was Fac Low Machines Accessed 11 | . 2 6 2 . . 1 . Terminals 10 | . 2 5 2 . . 1 . Fabricators . | . . . . . . . . Repair Stations . | . . . . . . . . Recycling Units 1 | . . 1 . . . . . Scanalyzers . | . . . . . . . . Garrison Access . | . . . . . . . . Total Hacks 35 | . 6 20 5 . . 4 . Successful 20 | . 4 13 1 . . 2 . Failed 15 | . 2 7 4 . . 2 . Catastrophic 3 | . . 1 1 . . 1 . Database Lockouts . | . . . . . . . . Manual 32 | . 6 17 5 . . 4 . Terminals 34 | . 6 19 5 . . 4 . Fabricators . | . . . . . . . . Repair Stations . | . . . . . . . . Recycling Units 1 | . . 1 . . . . . Scanalyzers . | . . . . . . . . Garrison Access . | . . . . . . . . Terminal Hacks 7 | . 1 5 . . . 1 . Terminal Index 3 | . 1 1 . . . 1 . Zone Layout 4 | . . 4 . . . . . Fabricator Hacks . | . . . . . . . . Repair Station Hacks . | . . . . . . . . Recycling Unit Hacks 1 | . . 1 . . . . . Report Inventory 1 | . . 1 . . . . . Scanalyzer . | . . . . . . . . Garrison Access Hacks . | . . . . . . . . Unauthorized Hacks 12 | . 3 7 1 . . 1 . Terminals 12 | . 3 7 1 . . 1 . Track 3 | . 1 2 . . . . . Assimilate 1 | . 1 . . . . . . Botnet 6 | . . 4 1 . . 1 . Operators 2 | . 1 1 . . . . . Fabricators . | . . . . . . . . Repair Stations . | . . . . . . . . Recycling Units . | . . . . . . . . Scanalyzers . | . . . . . . . . Garrison Access . | . . . . . . . . Data Cores Recovered 1 | . . . . 1 . . . Used . | . . . . . . . . Hacking Detections 9 | . 2 4 2 . . 1 . Full Trace Events . | . . . . . . . . Feedback Events . | . . . . . . . . Feedback Blocked . | . . . . . . . . Robot Schematics Acquired . | . . . . . . . . Robots Built . | . . . . . . . . Authchips . | . . . . . . . . Time . | . . . . . . . . Total Robot Build Rating . | . . . . . . . . Part Schematics Acquired . | . . . . . . . . Parts Built . | . . . . . . . . Authchips . | . . . . . . . . Time . | . . . . . . . . Total Part Build Rating . | . . . . . . . . Parts Repaired . | . . . . . . . . Time . | . . . . . . . . Parts Recycled . | . . . . . . . . Recycled Matter . | . . . . . . . . Retrieved Matter . | . . . . . . . . Retrieved Components . | . . . . . . . . Parts Scanalyzed . | . . . . . . . . Part Schematics Acquired . | . . . . . . . . Parts Damaged . | . . . . . . . . Bothacking | -11 -10 -9 -8 -7 -7 -7 -7 ------------ Run | Yrd Mat Mat Mat Fac Was Fac Low Used RIF Installer . | . . . . . . . . Robots Hacked 1 | . . 1 . . . . . Non-combat 1 | . . 1 . . . . . Combat . | . . . . . . . . Robot Hacks Applied 1 | . . 1 . . . . . no_distress 1 | . . 1 . . . . . Relay Couplers Released 1 | . . . 1 . . . . Machine Destruction 1 | . . . 1 . . . . Fabnet Peak Effective % . | . . . . . . . . Robots Rewired . | . . . . . . . . Allies Hacked . | . . . . . . . . Hacks Repelled . | . . . . . . . . Allies | -11 -10 -9 -8 -7 -7 -7 -7 -------- Run | Yrd Mat Mat Mat Fac Was Fac Low Total Allies . | . . . . . . . . Largest Group . | . . . . . . . . Highest-Rated Group . | . . . . . . . . Highest-Rated Ally . | . . . . . . . . Total Orders . | . . . . . . . . Ally Attacks . | . . . . . . . . Total Damage . | . . . . . . . . Kills . | . . . . . . . . Allies Corrupted . | . . . . . . . . Allies Melted . | . . . . . . . . Intel | -11 -10 -9 -8 -7 -7 -7 -7 ------- Run | Yrd Mat Mat Mat Fac Was Fac Low Robot Analysis Total . | . . . . . . . . Derelict Logs Recovered . | . . . . . . . . Drone Launches . | . . . . . . . . Drone Recoveries . | . . . . . . . . Exploration | -11 -10 -9 -8 -7 -7 -7 -7 ------------- Run | Yrd Mat Mat Mat Fac Was Fac Low Turns Passed 4593 | 261 894 1089 658 559 94 269 769 Spaces Moved 2307 | 107 166 608 326 356 132 138 474 Core 539 | 2 . 42 128 137 128 6 96 Treads . | . . . . . . . . Legs 328 | . . . 109 219 . . . Wheels 1230 | 105 166 566 89 . . 32 272 Hover . | . . . . . . . . Flight 210 | . . . . . 4 100 106 Fastest Speed 50 | 50 80 80 100 50 50 95 95 Average Speed 119 | 79 80 102 146 129 58 126 150 Slowest Speed 350 | 80 80 250 250 200 120 350 350 Overloaded Moves . | . . . . . . . . Propulsion Burnouts . | . . . . . . . . Robots Hopped . | . . . . . . . . Cave-ins Triggered . | . . . . . . . . Exploration Rate (%) 33 | 5 38 52 38 14 68 3 48 Regions Visited 7 Branch Regions 1 Pre-discovered Areas . | . . . . . . . . Known Exits Taken . | . . . . . . . . Unknown Exits Taken 5 | 1 1 1 1 . . 1 . Scrap Searched 1 | . . . . . . . 1 Spaces Dug 9 | . 6 3 . . . . . Terrain Destroyed 121 | . 6 52 9 54 . . . Melee . | . . . . . . . . Projectile 9 | . 6 3 . . . . . AOE 112 | . . 49 9 54 . . . Terrain Rammed . | . . . . . . . . Walls Destroyed . | . . . . . . . . Machines Disabled . | . . . . . . . . Actions | -11 -10 -9 -8 -7 -7 -7 -7 --------- Run | Yrd Mat Mat Mat Fac Was Fac Low Total 3830 | 241 884 955 445 434 148 207 516 Wait 1218 | 103 689 241 58 45 11 40 31 Move 2301 | 106 165 607 325 356 131 137 474 Hop . | . . . . . . . . Pick Up 33 | 6 4 8 1 6 . 5 3 Fast Attach 30 | 7 . 3 10 2 3 4 1 Attach 15 | . . 6 1 5 1 2 . Detach 4 | . . . 1 2 1 . . Swap 21 | . 6 11 2 . . 2 . Drop 16 | . 2 5 3 3 1 1 1 Fire 177 | 19 17 73 44 14 . 10 . Melee 13 | . . 1 . . . 6 6 Ram 1 | . 1 . . . . . . Kick 1 | . . . . 1 . . . Crush . | . . . . . . . . Escape Stasis . | . . . . . . . . Rewire . | . . . . . . . . Trap . | . . . . . . . . Miscellaneous . | . . . . . . . . Route ------- -11/Scrapyard -10/Materials -9/Materials -8/Materials -7/Factory -7/Waste -7/Factory -7/Lower Caves History --------- Turn | Location | Event 22 | -11/Scrapyard | Discovered new exit (range 16) 262 | -11/Scrapyard | Entered Materials 316 | -10/Materials | Build established: Mutant 1145 | -10/Materials | Discovered new exit (range 14) 1156 | -10/Materials | Entered another Materials area 1156 | -9/Materials | Evolved 2 slots: Utility x2 1561 | -9/Materials | Lost 5 parts (1p2n1u1w) 1826 | -9/Materials | Build established: Scavenger-Mutant 2227 | -9/Materials | Discovered new exit (range 7) 2245 | -9/Materials | Entered another Materials area 2245 | -8/Materials | Evolved 2 slots: Propulsion x1, Utility x1 2260 | -8/Materials | Garrison activated, responded to threat 2415 | -8/Materials | Build established: Mutant 2523 | -8/Materials | Met 7R-MNS 2660 | -8/Materials | Lost 3 parts (1n2w) 2892 | -8/Materials | Discovered new exit (range 8) 2903 | -8/Materials | Entered Factory 2903 | -7/Factory | Evolved 2 slots: Propulsion x1, Utility x1 2904 | -7/Factory | Caught up to 7R-MNS 2993 | -7/Factory | Build established: Scavenger-Mutant 3127 | -7/Factory | Garrison activated, responded to threat 3261 | -7/Factory | Garrison activated, responded to threat 3317 | -7/Factory | Core integrity fell below 50% 3336 | -7/Factory | Lost 6 parts (1n1u4w) 3462 | -7/Factory | Sucked down chute 3462 | -7/Factory | Entered Waste 3477 | -7/Waste | EMP discharged 3479 | -7/Waste | Spotted C-40 Crusher 3480 | -7/Waste | Spotted C-40 Crusher 3529 | -7/Waste | Spotted C-40 Crusher 3532 | -7/Waste | Spotted C-40 Crusher 3536 | -7/Waste | Discovered new exit (range 16) 3541 | -7/Waste | Crushed by Compactor (1 part destroyed, 1 dropped) 3542 | -7/Waste | Spotted C-40 Crusher 3551 | -7/Waste | System corruption reached 10% 3556 | -7/Waste | Entered Factory 3619 | -7/Factory | Discovered new exit (range 13) 3778 | -7/Factory | Build established: Mutant 3825 | -7/Factory | Entered Lower Caves 4020 | -7/Lower Caves | Encountered a Warlord checkpoint 4110 | -7/Lower Caves | Spotted B-75 Beast 4111 | -7/Lower Caves | Core integrity fell below 20% 4594 | -7/Lower Caves | Destroyed by G-47 Trooper with Particle Gun Last Messages --------------- 04330_ P-60 Hacker system corrupted by crushing effect. 04336_ P-60 Hacker suffers critical hit (Smash). 04336_ P-60 Hacker destroyed. 04339_ Acquired 11 matter. 04344_ Target Analyzer fries itself beyond repair. 04344_ Shock Rifle self-destruct mechanism malfunctions. 04349_ Dropped Hvy. Proton Cannon. 04350_ HRG5SAWC&:7:ZXNYM9AJ 04350_ Acquired Shock Rifle. 04370_ System corrupted: Energy discharge (-95). 04381_ Acquired Xenon Bombardment Thruster. 04403_ VDE/OLHWM= I77H&GAM9VSDU 04419_ System corrupted: Energy discharge (-74). 04447_ System corrupted: Xenon Bombardment Thruster fused. 04462_ System corrupted: Heat flow error (+260). 04479_ System corrupted: Matter fused (-7). 04515_ System corrupted: Matter fused (-9). 04531_ 5U9&1/Z2